[Event "Goteborg Open 2024"]
[Site "Goteborgs Schackcentrum, Vegatan 20, Gothenburg, Sweden"]
[Date "2024.08.04"]
[Round "8.11"]
[White "Thern, Alfred"]
[Black "Helin, Mikael"]
[Result "0-1"]
[TimeControl "15 minutes + 5 seconds per move from move one (Round 1 - 4) / 90 minutes + 30 seconds per move from move one (Round 5 - 8)"]
[BlackTitle "CM"]
[WhiteFideId "1775227"]
[BlackFideId "1703838"]
[WhiteElo "1729"]
[BlackElo "1937"]

1. e4 {[%clk 01:30:18]} {[%emt 00:00:41]} d6 {[%clk 01:30:49]} {[%emt
00:00:12]} 2. d4 {[%clk 01:30:36]} {[%emt 00:00:11]} g6 {[%clk 01:30:47]}
{[%emt 00:00:33]} 3. c4 {[%clk 01:30:40]} {[%emt 00:00:27]} Bg7 {[%clk
01:31:10]} {[%emt 00:00:05]} 4. Nc3 {[%clk 01:30:58]} {[%emt 00:00:12]} Nc6
{[%clk 01:31:35]} {[%emt 00:00:06]} 5. Be3 {[%clk 01:29:45]} {[%emt 00:01:43]}
e5 {[%clk 01:31:46]} {[%emt 00:00:19]} 6. d5 {[%clk 01:28:25]} {[%emt
00:01:50]} Nce7 {[%clk 01:32:07]} {[%emt 00:00:08]} 7. h4 {[%clk 01:26:35]}
{[%emt 00:02:21]} h6 {[%clk 01:31:23]} {[%emt 00:01:13]} 8. Bd3 {[%clk
01:23:42]} {[%emt 00:03:23]} Nf6 {[%clk 01:31:27]} {[%emt 00:00:26]} 9. f3
{[%clk 01:22:11]} {[%emt 00:02:02]} a5 {[%clk 01:30:50]} {[%emt 00:01:07]} 10.
Qc2 {[%clk 01:18:47]} {[%emt 00:03:53]} b6 {[%clk 01:30:52]} {[%emt 00:00:29]}
11. Nge2 {[%clk 01:17:48]} {[%emt 00:01:29]} Nd7 {[%clk 01:31:07]} {[%emt
00:00:15]} 12. Na4 {[%clk 01:16:08]} {[%emt 00:02:10]} O-O {[%clk 01:28:50]}
{[%emt 00:02:46]} 13. Qd2 {[%clk 01:13:36]} {[%emt 00:03:03]} Kh7 {[%clk
01:29:09]} {[%emt 00:00:10]} 14. h5 {[%clk 01:12:41]} {[%emt 00:01:26]} g5
{[%clk 01:29:21]} {[%emt 00:00:17]} 15. O-O-O {[%clk 01:09:23]} {[%emt
00:03:48]} Nc5 {[%clk 01:28:09]} {[%emt 00:01:43]} 16. Nxc5 {[%clk 01:09:11]}
{[%emt 00:00:42]} bxc5 {[%clk 01:28:34]} {[%emt 00:00:05]} 17. g4 {[%clk
01:08:35]} {[%emt 00:01:06]} c6 {[%clk 01:28:04]} {[%emt 00:01:00]} 18. Ng3
{[%clk 01:06:43]} {[%emt 00:02:22]} cxd5 {[%clk 01:24:36]} {[%emt 00:03:58]} 19.
exd5+ {[%clk 01:02:57]} {[%emt 00:04:16]} e4 {[%clk 01:22:57]} {[%emt
00:02:09]} 20. Nxe4 {[%clk 01:00:42]} {[%emt 00:02:45]} Kh8 {[%clk 01:21:53]}
{[%emt 00:01:33]} 21. Kb1 {[%clk 00:52:51]} {[%emt 00:08:22]} Rb8 {[%clk
01:22:22]} {[%emt 00:00:01]} 22. Nc3 {[%clk 00:51:16]} {[%emt 00:02:06]} f5
{[%clk 01:22:32]} {[%emt 00:00:19]} 23. f4 {[%clk 00:48:58]} {[%emt 00:02:48]}
a4 {[%clk 01:21:38]} {[%emt 00:01:23]} 24. fxg5 {[%clk 00:45:15]} {[%emt
00:04:13]} f4 {[%clk 01:21:42]} {[%emt 00:00:26]} 25. Bxf4 {[%clk 00:40:31]}
{[%emt 00:05:15]} Rxf4 {[%clk 01:22:01]} {[%emt 00:00:10]} 26. Qxf4 {[%clk
00:40:30]} {[%emt 00:00:31]} Bxc3 {[%clk 01:22:24]} {[%emt 00:00:08]} 27. Qe4
{[%clk 00:38:39]} {[%emt 00:02:21]} Rxb2+ {[%clk 01:22:31]} {[%emt 00:00:22]}
28. Kc1 {[%clk 00:38:50]} {[%emt 00:00:20]} Nf5 {[%clk 01:22:29]} {[%emt
00:00:32]} 29. Qf4 {[%clk 00:36:20]} {[%emt 00:02:59]} Qb6 {[%clk 01:21:41]}
{[%emt 00:01:18]} 30. Bxf5 {[%clk 00:34:13]} {[%emt 00:02:37]} Rg2 {[%clk
01:17:48]} {[%emt 00:04:23]} 31. Rde1 {[%clk 00:23:13]} {[%emt 00:11:30]} Qb2+
{[%clk 01:17:06]} {[%emt 00:01:11]} 32. Kd1 {[%clk 00:23:35]} {[%emt 00:00:10]}
Rd2+ {[%clk 01:17:18]} {[%emt 00:00:18]} 0-1

[ePGN "0.1;DGT LiveChess/2.2.6"]

[Event "Goteborg Open 2024"]
[Site "Goteborgs Schackcentrum, Vegatan 20, Gothenburg, Sweden"]
[Date "2024.08.04"]
[Round "8.12"]
[White "Madevan Vaishnavi, Yaashvan"]
[Black "Eldh, Hjalmar"]
[Result "1-0"]
[TimeControl "15 minutes + 5 seconds per move from move one (Round 1 - 4) / 90 minutes + 30 seconds per move from move one (Round 5 - 8)"]
[WhiteFideId "1772180"]
[BlackFideId "1767968"]
[WhiteElo "1684"]
[BlackElo "1897"]

1. e4 {[%clk 01:30:59]} {[%emt 00:00:01]} b6 {[%clk 01:09:15]} {[%emt
00:21:45]} 2. d4 {[%clk 01:31:02]} {[%emt 00:00:27]} Bb7 {[%clk 01:09:39]}
{[%emt 00:00:05]} 3. Nc3 {[%clk 01:31:25]} {[%emt 00:00:07]} Nf6 {[%clk
01:10:02]} {[%emt 00:00:07]} 4. Bd3 {[%clk 01:31:30]} {[%emt 00:00:26]} e6
{[%clk 01:10:25]} {[%emt 00:00:07]} 5. a3 {[%clk 01:31:03]} {[%emt 00:00:56]}
c5 {[%clk 01:10:44]} {[%emt 00:00:12]} 6. dxc5 {[%clk 01:30:57]} {[%emt
00:00:37]} Bxc5 {[%clk 01:11:04]} {[%emt 00:00:09]} 7. Nf3 {[%clk 01:31:12]}
{[%emt 00:00:15]} Nc6 {[%clk 01:10:59]} {[%emt 00:00:35]} 8. b4 {[%clk
01:29:04]} {[%emt 00:02:38]} Be7 {[%clk 01:11:17]} {[%emt 00:00:11]} 9. O-O
{[%clk 01:28:47]} {[%emt 00:00:48]} Rc8 {[%clk 01:11:05]} {[%emt 00:00:42]} 10.
Bb2 {[%clk 01:28:19]} {[%emt 00:00:58]} O-O {[%clk 01:11:19]} {[%emt 00:00:15]}
11. e5 {[%clk 01:26:27]} {[%emt 00:02:22]} Ng4 {[%clk 01:08:57]} {[%emt
00:02:52]} 12. Ne4 {[%clk 01:23:46]} {[%emt 00:03:11]} d5 {[%clk 01:04:51]}
{[%emt 00:04:37]} 13. exd6 {[%emt 00:00:25]} Bf6 {[%emt 00:00:13]} 14. Nxf6+
{[%clk 01:20:22]} {[%emt 00:03:17]} Nxf6 {[%clk 01:05:15]} {[%emt 00:00:05]} 15.
c4 {[%clk 01:16:14]} {[%emt 00:04:38]} h6 {[%clk 01:04:58]} {[%emt 00:00:46]}
16. Rc1 {[%clk 01:12:17]} {[%emt 00:04:28]} Nb8 {[%clk 01:04:09]} {[%emt
00:01:19]} 17. c5 {[%clk 01:09:35]} {[%emt 00:03:12]} bxc5 {[%clk 01:04:00]}
{[%emt 00:00:39]} 18. bxc5 {[%clk 01:09:55]} {[%emt 00:00:10]} Nbd7 {[%clk
01:03:47]} {[%emt 00:00:42]} 19. Bd4 {[%clk 01:05:01]} {[%emt 00:05:23]} Qa5
{[%clk 01:02:33]} {[%emt 00:01:45]} 20. Qd2 {[%clk 00:58:56]} {[%emt 00:06:36]}
Qd8 {[%clk 00:54:49]} {[%emt 00:08:14]} 21. Bb5 {[%clk 00:52:30]} {[%emt
00:06:56]} Ne4 {[%clk 00:53:39]} {[%emt 00:01:38]} 22. Qe3 {[%clk 00:50:04]}
{[%emt 00:02:58]} Ndxc5 {[%clk 00:47:48]} {[%emt 00:06:21]} 23. Bxc5 {[%clk
00:48:17]} {[%emt 00:02:17]} Nxc5 {[%clk 00:48:06]} {[%emt 00:00:12]} 24. Rxc5
{[%clk 00:43:27]} {[%emt 00:05:21]} Qxd6 {[%clk 00:48:21]} {[%emt 00:00:13]} 25.
Rxc8 {[%clk 00:42:31]} {[%emt 00:01:27]} Rxc8 {[%clk 00:48:20]} {[%emt
00:00:31]} 26. Rc1 {[%clk 00:38:04]} {[%emt 00:04:56]} Rb8 {[%clk 00:48:36]}
{[%emt 00:00:14]} 27. Be2 {[%clk 00:36:22]} {[%emt 00:02:13]} Bd5 {[%clk
00:45:53]} {[%emt 00:03:12]} 28. Qc5 {[%clk 00:31:01]} {[%emt 00:05:51]} Qf4
{[%clk 00:43:25]} {[%emt 00:02:57]} 29. Qc7 {[%clk 00:30:16]} {[%emt 00:01:17]}
Qxc7 {[%clk 00:38:50]} {[%emt 00:05:05]} 30. Rxc7 {[%clk 00:30:25]} {[%emt
00:00:21]} Rb1+ {[%clk 00:39:13]} {[%emt 00:00:06]} 31. Bf1 {[%clk 00:30:49]}
{[%emt 00:00:06]} Ra1 {[%clk 00:39:29]} {[%emt 00:00:14]} 32. Rxa7 {[%clk
00:27:05]} {[%emt 00:04:15]} Bc4 {[%clk 00:39:47]} {[%emt 00:00:10]} 33. Nd2
{[%clk 00:27:30]} {[%emt 00:00:07]} Be2 {[%clk 00:40:07]} {[%emt 00:00:08]} 34.
f3 {[%clk 00:27:39]} {[%emt 00:00:23]} g5 {[%clk 00:38:35]} {[%emt 00:02:02]}
35. Kf2 {[%clk 00:27:34]} {[%emt 00:00:35]} Bd1 {[%clk 00:38:56]} {[%emt
00:00:08]} 36. Bb5 {[%clk 00:26:09]} {[%emt 00:01:47]} g4 {[%clk 00:38:16]}
{[%emt 00:01:18]} 37. Be8 {[%clk 00:24:04]} {[%emt 00:02:36]} Ra2 {[%clk
00:37:17]} {[%emt 00:01:28]} 38. Bxf7+ {[%clk 00:22:22]} {[%emt 00:02:13]} Kh8
{[%clk 00:37:43]} {[%emt 00:00:04]} 39. Ke3 {[%clk 00:22:30]} {[%emt 00:00:21]}
gxf3 {[%clk 00:37:54]} {[%emt 00:00:18]} 40. gxf3 {[%clk 00:22:35]} {[%emt
00:00:27]} Rc2 {[%clk 00:36:47]} {[%emt 00:01:35]} 41. Bxe6 {[%clk 00:19:47]}
{[%emt 00:03:20]} Rc5 {[%clk 00:37:07]} {[%emt 00:00:08]} 42. Ne4 {[%clk
00:19:43]} {[%emt 00:00:35]} Re5 {[%clk 00:35:46]} {[%emt 00:01:49]} 43. Bc4
{[%clk 00:17:42]} {[%emt 00:02:33]} Bxf3 {[%clk 00:29:29]} {[%emt 00:06:47]} 44.
Kxf3 {[%clk 00:17:47]} {[%emt 00:00:25]} Rf5+ {[%clk 00:29:51]} {[%emt
00:00:09]} 45. Kg4 {[%clk 00:17:43]} {[%emt 00:00:33]} Rg5+ {[%clk 00:30:13]}
{[%emt 00:00:08]} 46. Nxg5 {[%clk 00:17:51]} {[%emt 00:00:22]} hxg5 {[%clk
00:30:37]} {[%emt 00:00:06]} 47. Kh5 {[%clk 00:18:15]} {[%emt 00:00:07]} g4
{[%clk 00:30:59]} {[%emt 00:00:08]} 48. Kg6 {[%clk 00:18:39]} {[%emt 00:00:06]}
g3 {[%clk 00:31:24]} {[%emt 00:00:05]} 49. Ra8# {[%clk 00:19:05]} {[%emt
00:00:05]} 1-0

[ePGN "0.1;DGT LiveChess/2.2.6"]

[Event "Goteborg Open 2024"]
[Site "Goteborgs Schackcentrum, Vegatan 20, Gothenburg, Sweden"]
[Date "2024.08.04"]
[Round "8.13"]
[White "Andersson, Stig"]
[Black "Shchetinin, Oleg"]
[Result "1-0"]
[TimeControl "15 minutes + 5 seconds per move from move one (Round 1 - 4) / 90 minutes + 30 seconds per move from move one (Round 5 - 8)"]
[WhiteFideId "1731971"]
[BlackFideId "1740210"]
[WhiteElo "1889"]
[BlackElo "1742"]

1. e4 {[%clk 01:22:23]} {[%emt 00:08:36]} Nf6 {[%clk 01:30:36]} {[%emt
00:00:25]} 2. d3 {[%clk 01:20:12]} {[%emt 00:02:41]} e5 {[%clk 01:30:32]}
{[%emt 00:00:34]} 3. Bg5 {[%clk 01:17:23]} {[%emt 00:03:18]} Be7 {[%clk
01:30:39]} {[%emt 00:00:24]} 4. Nc3 {[%clk 01:16:14]} {[%emt 00:01:39]} O-O
{[%clk 01:29:24]} {[%emt 00:01:45]} 5. Qd2 {[%clk 01:14:21]} {[%emt 00:02:22]}
c6 {[%clk 01:28:41]} {[%emt 00:01:14]} 6. f3 {[%clk 01:06:53]} {[%emt
00:07:57]} d5 {[%clk 01:28:16]} {[%emt 00:00:55]} 7. O-O-O {[%clk 01:05:25]}
{[%emt 00:01:58]} d4 {[%clk 01:22:54]} {[%emt 00:05:53]} 8. Nce2 {[%clk
01:05:01]} {[%emt 00:00:53]} Be6 {[%clk 01:19:54]} {[%emt 00:03:31]} 9. h4
{[%clk 01:01:30]} {[%emt 00:04:00]} Bxa2 {[%clk 01:20:10]} {[%emt 00:00:15]} 10.
Nh3 {[%clk 00:56:44]} {[%emt 00:05:15]} Qb6 {[%clk 01:19:18]} {[%emt 00:01:23]}
11. Re1 {[%clk 00:49:20]} {[%emt 00:07:54]} Ba3 {[%clk 01:14:28]} {[%emt
00:05:20]} 12. c3 {[%clk 00:48:59]} {[%emt 00:00:50]} Be7 {[%clk 01:10:06]}
{[%emt 00:04:52]} 13. f4 {[%clk 00:46:01]} {[%emt 00:03:28]} exf4 {[%clk
01:08:32]} {[%emt 00:02:05]} 14. Nxd4 {[%clk 00:44:48]} {[%emt 00:01:39]} Bc5
{[%clk 01:02:01]} {[%emt 00:07:05]} 15. Bxf6 {[%clk 00:43:27]} {[%emt
00:01:51]} gxf6 {[%clk 01:01:57]} {[%emt 00:00:34]} 16. Nf5 {[%clk 00:43:12]}
{[%emt 00:00:44]} Be6 {[%clk 00:56:49]} {[%emt 00:05:39]} 17. Nh6+ {[%clk
00:37:55]} {[%emt 00:05:47]} Kg7 {[%clk 00:52:10]} {[%emt 00:05:07]} 18. Nxf4
{[%clk 00:37:34]} {[%emt 00:00:52]} Qa5 {[%clk 00:51:57]} {[%emt 00:00:39]} 19.
Kd1 {[%clk 00:34:09]} {[%emt 00:03:59]} Bb3+ {[%clk 00:49:13]} {[%emt
00:03:14]} 20. Ke2 {[%clk 00:30:21]} {[%emt 00:04:17]} Bb6 {[%clk 00:42:48]}
{[%emt 00:06:58]} 21. Nf5+ {[%clk 00:25:09]} {[%emt 00:05:40]} Kh8 {[%clk
00:42:02]} {[%emt 00:01:14]} 22. Nh5 {[%clk 00:23:16]} {[%emt 00:02:24]} Qc5
{[%clk 00:20:22]} {[%emt 00:22:10]} 23. Kf3 {[%clk 00:22:48]} {[%emt 00:00:57]}
Nd7 {[%clk 00:18:55]} {[%emt 00:02:00]} 24. d4 {[%clk 00:11:58]} {[%emt
00:11:18]} Rad8 {[%clk 00:19:23]} {[%emt 00:00:04]} 25. Qh6 {[%clk 00:10:20]}
{[%emt 00:02:07]} Ne5+ {[%clk 00:18:56]} {[%emt 00:00:58]} 26. Ke2 {[%clk
00:06:27]} {[%emt 00:04:22]} Qc4+ {[%clk 00:18:15]} {[%emt 00:01:11]} 27. Kd2
{[%clk 00:06:22]} {[%emt 00:00:35]} Rxd4+ {[%clk 00:12:05]} {[%emt 00:06:41]}
28. Nxd4 {[%clk 00:06:18]} {[%emt 00:00:33]} Qxd4+ {[%clk 00:12:24]} {[%emt
00:00:12]} 29. cxd4 {[%clk 00:06:24]} {[%emt 00:00:24]} 1-0

[ePGN "0.1;DGT LiveChess/2.2.6"]

[Event "Goteborg Open 2024"]
[Site "Goteborgs Schackcentrum, Vegatan 20, Gothenburg, Sweden"]
[Date "2024.08.04"]
[Round "8.14"]
[White "Green, David"]
[Black "Bergdahl, Daniel"]
[Result "0-1"]
[TimeControl "15 minutes + 5 seconds per move from move one (Round 1 - 4) / 90 minutes + 30 seconds per move from move one (Round 5 - 8)"]
[WhiteFideId "1769332"]
[BlackFideId "1780921"]
[WhiteElo "1946"]
[BlackElo "1689"]

1. e4 {[%clk 01:30:54]} {[%emt 00:00:05]} c6 {[%clk 01:30:39]} {[%emt
00:00:22]} 2. d4 {[%clk 01:31:11]} {[%emt 00:00:12]} d5 {[%clk 01:31:01]}
{[%emt 00:00:08]} 3. f3 {[%clk 01:31:15]} {[%emt 00:00:26]} dxe4 {[%clk
01:31:15]} {[%emt 00:00:17]} 4. fxe4 {[%clk 01:31:41]} {[%emt 00:00:03]} e5
{[%clk 01:31:22]} {[%emt 00:00:23]} 5. Nf3 {[%clk 01:32:01]} {[%emt 00:00:09]}
Bg4 {[%clk 01:28:32]} {[%emt 00:03:20]} 6. Bc4 {[%clk 01:32:22]} {[%emt
00:00:10]} Nd7 {[%clk 01:28:51]} {[%emt 00:00:11]} 7. h3 {[%clk 01:32:38]}
{[%emt 00:00:14]} Bxf3 {[%clk 01:28:52]} {[%emt 00:00:30]} 8. Qxf3 {[%clk
01:32:54]} {[%emt 00:00:13]} Ngf6 {[%clk 01:28:57]} {[%emt 00:00:25]} 9. Qb3
{[%clk 01:31:38]} {[%emt 00:01:46]} Qe7 {[%clk 01:27:04]} {[%emt 00:02:22]} 10.
Qxb7 {[%clk 01:30:41]} {[%emt 00:01:29]} Qb4+ {[%clk 01:26:51]} {[%emt
00:00:42]} 11. Qxb4 {[%clk 01:31:04]} {[%emt 00:00:07]} Bxb4+ {[%clk 01:27:07]}
{[%emt 00:00:14]} 12. c3 {[%clk 01:29:23]} {[%emt 00:02:11]} Ba5 {[%clk
01:27:06]} {[%emt 00:00:31]} 13. O-O {[%clk 01:26:28]} {[%emt 00:03:25]} O-O
{[%clk 01:26:40]} {[%emt 00:00:56]} 14. Bd3 {[%clk 01:12:07]} {[%emt 00:14:51]}
exd4 {[%clk 01:25:35]} {[%emt 00:01:35]} 15. cxd4 {[%clk 01:10:42]} {[%emt
00:01:56]} Rfe8 {[%clk 01:25:10]} {[%emt 00:00:54]} 16. Rf4 {[%clk 00:59:58]}
{[%emt 00:11:14]} Bb6 {[%clk 01:23:50]} {[%emt 00:01:51]} 17. Be3 {[%clk
00:56:48]} {[%emt 00:03:39]} Ne5 {[%clk 01:22:52]} {[%emt 00:01:28]} 18. Ba6
{[%clk 00:49:14]} {[%emt 00:08:04]} Ng6 {[%clk 01:21:40]} {[%emt 00:01:42]} 19.
Rf1 {[%clk 00:46:57]} {[%emt 00:02:47]} Rxe4 {[%clk 01:21:18]} {[%emt
00:00:53]} 20. Bf2 {[%clk 00:46:33]} {[%emt 00:00:54]} Bxd4 {[%clk 01:19:36]}
{[%emt 00:02:12]} 21. Nd2 {[%clk 00:38:39]} {[%emt 00:08:23]} Bxf2+ {[%clk
01:09:41]} {[%emt 00:10:25]} 22. Rxf2 {[%clk 00:37:30]} {[%emt 00:01:40]} Rb4
{[%clk 01:09:25]} {[%emt 00:00:41]} 23. Nb3 {[%clk 00:35:50]} {[%emt 00:02:15]}
Rab8 {[%clk 01:07:01]} {[%emt 00:02:54]} 24. Rc2 {[%clk 00:33:04]} {[%emt
00:03:16]} Ne5 {[%clk 01:04:46]} {[%emt 00:02:36]} 25. Re1 {[%clk 00:25:34]}
{[%emt 00:08:08]} Nfd7 {[%clk 01:00:34]} {[%emt 00:04:42]} 26. Ree2 {[%clk
00:15:11]} {[%emt 00:10:54]} f6 {[%clk 00:57:00]} {[%emt 00:04:03]} 27. Na5
{[%clk 00:10:33]} {[%emt 00:05:08]} c5 {[%clk 00:47:18]} {[%emt 00:10:12]} 28.
b3 {[%clk 00:07:55]} {[%emt 00:03:08]} R4b6 {[%clk 00:44:43]} {[%emt 00:03:05]}
29. Bc4+ {[%clk 00:07:17]} {[%emt 00:01:09]} Kf8 {[%clk 00:44:30]} {[%emt
00:00:43]} 30. Rcd2 {[%clk 00:04:10]} {[%emt 00:03:37]} Re8 {[%clk 00:39:37]}
{[%emt 00:05:22]} 31. Re1 {[%clk 00:03:03]} {[%emt 00:01:38]} Nf3+ {[%clk
00:39:42]} {[%emt 00:00:25]} 32. gxf3 {[%clk 00:01:55]} {[%emt 00:01:37]} Rxe1+
{[%clk 00:40:01]} {[%emt 00:00:11]} 33. Kf2 {[%clk 00:02:17]} {[%emt 00:00:08]}
Re7 {[%clk 00:39:29]} {[%emt 00:01:01]} 34. Bd5 {[%clk 00:02:24]} {[%emt
00:00:25]} Ne5 {[%clk 00:38:50]} {[%emt 00:01:08]} 35. f4 {[%clk 00:02:35]}
{[%emt 00:00:20]} Ng6 {[%clk 00:38:47]} {[%emt 00:00:31]} 36. Nc4 {[%clk
00:02:35]} {[%emt 00:00:31]} Rb8 {[%clk 00:38:48]} {[%emt 00:00:28]} 37. Kf3
{[%clk 00:02:50]} {[%emt 00:00:16]} Rd8 {[%clk 00:38:38]} {[%emt 00:00:40]} 38.
Ne3 {[%clk 00:02:29]} {[%emt 00:00:52]} Red7 {[%clk 00:38:23]} {[%emt
00:00:44]} 39. Ke4 {[%clk 00:02:47]} {[%emt 00:00:13]} Ne7 {[%clk 00:38:42]}
{[%emt 00:00:10]} 40. f5 {[%clk 00:03:01]} {[%emt 00:00:16]} Re8 {[%clk
00:38:24]} {[%emt 00:00:48]} 41. Kf4 {[%clk 00:02:37]} {[%emt 00:00:54]} Nc6
{[%clk 00:37:48]} {[%emt 00:01:04]} 42. Bxc6 {[%clk 00:01:04]} {[%emt
00:02:05]} Rxd2 {[%clk 00:38:00]} {[%emt 00:00:19]} 43. Nc4 {[%clk 00:01:04]}
{[%emt 00:00:30]} Rd4+ {[%clk 00:37:49]} {[%emt 00:00:41]} 0-1

[ePGN "0.1;DGT LiveChess/2.2.6"]

[Event "Goteborg Open 2024"]
[Site "Goteborgs Schackcentrum, Vegatan 20, Gothenburg, Sweden"]
[Date "2024.08.04"]
[Round "8.15"]
[White "Gallardo, Guillermo"]
[Black "Lifmark, Kaspar"]
[Result "1/2-1/2"]
[TimeControl "15 minutes + 5 seconds per move from move one (Round 1 - 4) / 90 minutes + 30 seconds per move from move one (Round 5 - 8)"]
[WhiteFideId "1773488"]
[BlackFideId "1742396"]
[WhiteElo "1822"]
[BlackElo "1672"]

1. c4 {[%emt 00:00:03]} e5 {[%emt 00:00:06]} 2. Nc3 {[%clk 01:30:33]} {[%emt
00:00:17]} Nc6 {[%clk 01:30:55]} {[%emt 00:00:07]} 3. g3 {[%clk 01:30:35]}
{[%emt 00:00:27]} f5 {[%clk 01:31:15]} {[%emt 00:00:10]} 4. d3 {[%clk
01:30:44]} {[%emt 00:00:21]} Nf6 {[%clk 01:31:26]} {[%emt 00:00:18]} 5. Bg2
{[%clk 01:30:53]} {[%emt 00:00:22]} Bb4 {[%clk 01:28:31]} {[%emt 00:03:25]} 6.
e3 {[%clk 01:30:25]} {[%emt 00:00:57]} d5 {[%clk 01:27:12]} {[%emt 00:01:50]} 7.
cxd5 {[%clk 01:25:16]} {[%emt 00:05:39]} Nxd5 {[%clk 01:27:21]} {[%emt
00:00:21]} 8. Bd2 {[%clk 01:22:35]} {[%emt 00:03:11]} Be6 {[%clk 01:23:19]}
{[%emt 00:04:31]} 9. Nge2 {[%clk 01:22:31]} {[%emt 00:00:35]} O-O {[%clk
01:20:52]} {[%emt 00:02:56]} 10. O-O {[%clk 01:22:30]} {[%emt 00:00:31]} Qd7
{[%clk 01:13:50]} {[%emt 00:07:33]} 11. a3 {[%clk 01:19:29]} {[%emt 00:03:31]}
Bxc3 {[%clk 01:13:44]} {[%emt 00:00:36]} 12. bxc3 {[%clk 01:14:16]} {[%emt
00:05:44]} Nf6 {[%clk 01:11:56]} {[%emt 00:02:17]} 13. d4 {[%clk 01:09:17]}
{[%emt 00:05:28]} e4 {[%clk 01:03:08]} {[%emt 00:09:18]} 14. Qa4 {[%clk
00:58:22]} {[%emt 00:11:25]} Ne7 {[%clk 00:57:36]} {[%emt 00:06:03]} 15. Qxd7
{[%clk 00:57:05]} {[%emt 00:01:47]} Nxd7 {[%clk 00:57:38]} {[%emt 00:00:28]} 16.
Rfb1 {[%clk 00:52:47]} {[%emt 00:04:48]} Bc4 {[%clk 00:55:19]} {[%emt
00:02:49]} 17. Nf4 {[%clk 00:47:39]} {[%emt 00:05:38]} b6 {[%clk 00:50:43]}
{[%emt 00:05:05]} 18. Bf1 {[%clk 00:44:11]} {[%emt 00:03:58]} Bxf1 {[%clk
00:50:53]} {[%emt 00:00:22]} 19. Kxf1 {[%clk 00:43:34]} {[%emt 00:01:05]} c5
{[%clk 00:50:45]} {[%emt 00:00:39]} 20. a4 {[%clk 00:42:07]} {[%emt 00:01:57]}
Rf6 {[%clk 00:47:13]} {[%emt 00:04:01]} 21. a5 {[%clk 00:39:35]} {[%emt
00:03:03]} Rd8 {[%clk 00:45:45]} {[%emt 00:01:57]} 22. axb6 {[%clk 00:37:34]}
{[%emt 00:02:32]} axb6 {[%clk 00:45:25]} {[%emt 00:00:50]} 23. Ra7 {[%clk
00:34:35]} {[%emt 00:03:28]} g5 {[%clk 00:44:41]} {[%emt 00:01:14]} 24. Ne2
{[%clk 00:34:17]} {[%emt 00:00:48]} Rh6 {[%clk 00:42:42]} {[%emt 00:02:29]} 25.
Kg2 {[%clk 00:34:09]} {[%emt 00:00:38]} Nc6 {[%clk 00:42:51]} {[%emt 00:00:21]}
26. Ra6 {[%clk 00:30:21]} {[%emt 00:04:18]} Na5 {[%clk 00:41:31]} {[%emt
00:01:50]} 27. Be1 {[%clk 00:27:56]} {[%emt 00:02:54]} Nc4 {[%clk 00:40:01]}
{[%emt 00:02:01]} 28. Rba1 {[%clk 00:26:54]} {[%emt 00:01:32]} Rc8 {[%clk
00:33:28]} {[%emt 00:07:03]} 29. Ra8 {[%clk 00:24:26]} {[%emt 00:02:59]} Rxa8
{[%clk 00:32:54]} {[%emt 00:01:04]} 30. Rxa8+ {[%clk 00:24:54]} {[%emt
00:00:02]} Kf7 {[%clk 00:32:57]} {[%emt 00:00:27]} 31. Nc1 {[%clk 00:22:49]}
{[%emt 00:02:35]} b5 {[%clk 00:31:19]} {[%emt 00:02:08]} 32. Nb3 {[%clk
00:22:43]} {[%emt 00:00:35]} Rc6 {[%clk 00:31:03]} {[%emt 00:00:47]} 33. Ra7
{[%clk 00:14:50]} {[%emt 00:08:22]} Ke8 {[%clk 00:28:10]} {[%emt 00:03:24]} 34.
Na5 {[%clk 00:09:24]} {[%emt 00:05:56]} Nxa5 {[%clk 00:26:47]} {[%emt
00:01:53]} 35. Rxa5 {[%clk 00:09:48]} {[%emt 00:00:05]} Rb6 {[%clk 00:27:11]}
{[%emt 00:00:06]} 36. dxc5 {[%clk 00:09:22]} {[%emt 00:00:56]} Nxc5 {[%clk
00:27:12]} {[%emt 00:00:29]} 37. c4 {[%clk 00:06:21]} {[%emt 00:03:31]} Nb3
{[%clk 00:22:25]} {[%emt 00:05:18]} 38. Rxb5 {[%clk 00:06:20]} {[%emt
00:00:31]} Rxb5 {[%clk 00:22:49]} {[%emt 00:00:06]} 39. cxb5 {[%clk 00:06:43]}
{[%emt 00:00:07]} Kd7 {[%clk 00:23:10]} {[%emt 00:00:08]} 40. f3 {[%clk
00:04:27]} {[%emt 00:02:46]} g4 {[%clk 00:22:20]} {[%emt 00:01:20]} 41. f4
{[%clk 00:03:12]} {[%emt 00:01:45]} Kc7 {[%clk 00:22:09]} {[%emt 00:00:40]}
1/2-1/2

[ePGN "0.1;DGT LiveChess/2.2.6"]